[Event "10th LBHM Open 2024"]
[Site "Pune"]
[Date "2024.05.21"]
[Round "2.7"]
[White "Roy Chowdhury, Saptarshi"]
[Black "Maniar Hriday"]
[Result "1-0"]
[ECO "B10"]
[WhiteElo "2249"]
[BlackElo "1665"]
[PlyCount "77"]
[EventDate "2024.05.21"]
[EventType "swiss"]
[EventCountry "IND"]
[TimeControl "5400+30"]

1. e4 {[%emt 0:06:40]} c6 {[%emt 0:00:19]} 2. d3 {[%emt 0:02:15]} d5 {[%emt 0:01:19]} 3. Nd2 {[%emt 0:00:06]} dxe4 {[%emt 0:05:22]} 4. dxe4 {[%emt 0:00:11]} e5 {[%emt 0:08:30]} 5. Ngf3 {[%emt 0:02:32]} Bg4 {[%emt 0:02:46]} 6. Bc4 {[%emt 0:00:55]} Qe7 {[%emt 0:02:57]} 7. a4 {[%emt 0:00:50]} Nd7 {[%emt 0:02:43]} 8. c3 {[%emt 0:01:26]} Ngf6 {[%emt 0:02:54]} 9. O-O {[%emt 0:04:43]} Rd8 {[%emt 0:08:08]} 10. Re1 {[%emt 0:04:34]} Nb6 {[%emt 0:08:01]} 11. Bb3 {[%emt 0:00:57]} a5 {[%emt 0:01:34]} 12. Qc2 {[%emt 0:02:08]} h6 {[%emt 0:02:57]} 13. h3 {[%emt 0:02:57]} Bc8 {[%emt 0:13:26]} 14. Nf1 {[%emt 0:02:39]} Qc7 {[%emt 0:01:49]} 15. Ng3 {[%emt 0:00:26]} g6 {[%emt 0:02:15]} 16. Be3 {[%emt 0:00:42]} c5 {[%emt 0:02:46]} 17. Qc1 {[%emt 0:08:53]} Bg7 {[%emt 0:02:57]} 18. Ba2 {[%emt 0:01:40]} Nbd7 {[%emt 0:02:14]} 19. Bc4 {[%emt 0:00:40]} b6 {[%emt 0:02:02]} 20. Nh4 {[%emt 0:14:10]} Kf8 {[%emt 0:05:24]} 21. Qc2 {[%emt 0:00:29]} Nb8 22. Rad1 {[%emt 0:00:54]} Nc6 {[%emt 0:03:17]} 23. Qb3 {[%emt 0:00:39]} Ne8 {[%emt 0:03:11]} 24. Rxd8 {[%emt 0:06:14]} Nxd8 {[%emt 0:01:35]} 25. Rd1 {[%emt 0:00:18]} Nd6 {[%emt 0:00:43]} 26. Bd5 {[%emt 0:00:05]} Ne6 {[%emt 0:01:18]} 27. Nxg6+ {[%emt 0:03:11]} fxg6 {[%emt 0:01:20]} 28. Bxe6 {[%emt 0:00:04]} Ke7 {[%emt 0:01:26]} 29. Bd5 {[%emt 0:00:48]} Rf8 {[%emt 0:02:27]} 30. Qa3 Rd8 {[%emt 0:01:35]} 31. b3 {[%emt 0:01:37]} Bb7 {[%emt 0:02:39]} 32. Qc1 {[%emt 0:00:12]} Nf7 {[%emt 0:01:09]} 33. c4 {[%emt 0:08:11]} Bc8 {[%emt 0:02:37]} 34. h4 {[%emt 0:00:32]} Qd6 {[%emt 0:01:42]} 35. Rd2 {[%emt 0:01:24]} Qf6 {[%emt 0:00:48]} 36. Bxf7 {[%emt 0:00:12]} Rxd2 {[%emt 0:00:31]} 37. Qxd2 {[%emt 0:00:03]} Kxf7 {[%emt 0:01:02]} 38. Bxh6 {[%emt 0:00:15]} Ke7 {[%emt 0:01:16]} 39. Bg5 {[%emt 0:00:04]} 1-0

[Event "10th LBHM Open 2024"]
[Site "Pune"]
[Date "2024.05.21"]
[Round "2.8"]
[White "Hardik Shah"]
[Black "Dere Pushkar"]
[Result "0-1"]
[ECO "A00"]
[WhiteElo "1664"]
[BlackElo "2209"]
[PlyCount "99"]
[EventDate "2024.05.21"]
[EventType "swiss"]
[EventCountry "IND"]
[TimeControl "5400+30"]

1. b4 {[%emt 0:00:37]} e5 {[%emt 0:00:30]} 2. Bb2 {[%emt 0:00:09]} Bxb4 {[%emt 0:01:49]} 3. Bxe5 {[%emt 0:00:08]} Nf6 {[%emt 0:00:38]} 4. c3 {[%emt 0:00:46]} Be7 {[%emt 0:01:22]} 5. g3 {[%emt 0:00:36]} Nc6 {[%emt 0:03:09]} 6. Bxf6 {[%emt 0:00:16]} Bxf6 {[%emt 0:00:04]} 7. Bg2 {[%emt 0:00:22]} d5 {[%emt 0:00:40]} 8. d4 {[%emt 0:00:13]} O-O {[%emt 0:01:22]} 9. Nf3 {[%emt 0:00:33]} Bf5 {[%emt 0:00:47]} 10. Nbd2 {[%emt 0:00:49]} Re8 {[%emt 0:01:21]} 11. O-O {[%emt 0:00:25]} Qd7 {[%emt 0:03:44]} 12. Nb3 {[%emt 0:01:41]} b6 {[%emt 0:02:32]} 13. h4 {[%emt 0:00:45]} h6 {[%emt 0:07:08]} 14. a4 {[%emt 0:01:11]} a5 {[%emt 0:00:33]} 15. Nc1 {[%emt 0:03:44]} Rad8 {[%emt 0:07:16]} 16. Nd3 {[%emt 0:03:08]} Qe7 {[%emt 0:02:00]} 17. Ra2 {[%emt 0:05:52]} g5 {[%emt 0:02:50]} 18. Qd2 {[%emt 0:14:21]} Kg7 {[%emt 0:02:00]} 19. Nde5 {[%emt 0:22:37]} Bxe5 {[%emt 0:06:21]} 20. dxe5 {[%emt 0:02:56]} gxh4 {[%emt 0:01:02]} 21. Nxh4 {[%emt 0:00:51]} Qxe5 {[%emt 0:00:30]} 22. Qe3 {[%emt 0:06:33]} Bg4 {[%emt 0:03:36]} 23. Qxe5+ {[%emt 0:05:51]} Nxe5 {[%emt 0:00:20]} 24. Rd1 {[%emt 0:01:13]} c6 {[%emt 0:01:40]} 25. Rd4 {[%emt 0:02:11]} Be6 {[%emt 0:03:06]} 26. f4 {[%emt 0:04:48]} c5 {[%emt 0:01:38]} 27. Rd1 {[%emt 0:00:39]} Ng4 {[%emt 0:00:47]} 28. f5 {[%emt 0:13:49]} Ne3 {[%emt 0:01:02]} 29. Rb1 {[%emt 0:00:23]} Bxf5 {[%emt 0:01:25]} 30. Rxb6 {[%emt 0:00:48]} Be6 {[%emt 0:02:21]} 31. Ra1 {[%emt 0:01:04]} Rb8 {[%emt 0:00:45]} 32. Rb5 {[%emt 0:02:26]} Rxb5 {[%emt 0:00:12]} 33. axb5 {[%emt 0:00:01]} Nc4 {[%emt 0:00:42]} 34. e4 {[%emt 0:00:30]} d4 {[%emt 0:01:34]} 35. cxd4 {[%emt 0:00:25]} cxd4 {[%emt 0:00:03]} 36. Bf1 {[%emt 0:00:44]} Rd8 {[%emt 0:00:49]} 37. Bxc4 {[%emt 0:05:00]} Bxc4 {[%emt 0:00:04]} 38. Ra4 {[%emt 0:00:33]} Bxb5 {[%emt 0:01:07]} 39. Rxa5 {[%emt 0:00:14]} Be2 {[%emt 0:00:37]} 40. Kf2 {[%emt 0:00:45]} d3 {[%emt 0:00:41]} 41. Nf5+ {[%emt 0:00:23]} Kf6 {[%emt 0:02:46]} 42. Ne3 {[%emt 0:00:13]} h5 {[%emt 0:00:55]} 43. Nd5+ {[%emt 0:00:49]} Kg7 {[%emt 0:01:03]} 44. Ke3 {[%emt 0:00:30]} Rd6 {[%emt 0:00:58]} 45. Ra2 {[%emt 0:00:29]} Rg6 {[%emt 0:00:58]} 46. Kf2 Re6 {[%emt 0:01:15]} 47. Nc3 {[%emt 0:01:01]} Rf6+ {[%emt 0:00:04]} 48. Kg2 {[%emt 0:00:37]} Bf3+ {[%emt 0:00:05]} 49. Kg1 {[%emt 0:00:23]} Rc6 {[%emt 0:00:03]} 50. Nd5 {[%emt 0:01:08]} 0-1

[Event "10th LBHM Open 2024"]
[Site "Pune"]
[Date "2024.05.21"]
[Round "2.9"]
[White "Md Imran"]
[Black "Rishen Jilowa"]
[Result "1-0"]
[ECO "A45"]
[WhiteElo "2184"]
[BlackElo "1669"]
[PlyCount "137"]
[EventDate "2024.05.21"]
[EventType "swiss"]
[EventCountry "IND"]
[TimeControl "5400+30"]

1. d4 {[%emt 0:01:03]} Nf6 {[%emt 0:04:12]} 2. Bg5 {[%emt 0:03:23]} g6 {[%emt 0:00:24]} 3. Bxf6 {[%emt 0:00:18]} exf6 {[%emt 0:00:06]} 4. h4 {[%emt 0:00:04]} Bg7 {[%emt 0:00:32]} 5. g3 {[%emt 0:00:12]} d5 {[%emt 0:00:42]} 6. e3 {[%emt 0:00:04]} c6 {[%emt 0:00:14]} 7. Nd2 {[%emt 0:00:30]} O-O {[%emt 0:00:25]} 8. Bg2 {[%emt 0:00:04]} Qb6 {[%emt 0:00:36]} 9. Qc1 {[%emt 0:01:41]} Re8 {[%emt 0:00:22]} 10. Ne2 {[%emt 0:00:13]} Bg4 {[%emt 0:03:03]} 11. Bf3 {[%emt 0:00:02]} Bxf3 {[%emt 0:00:34]} 12. Nxf3 {[%emt 0:00:02]} Nd7 {[%emt 0:00:09]} 13. O-O {[%emt 0:00:04]} f5 {[%emt 0:00:04]} 14. Kg2 {[%emt 0:00:36]} Nf6 {[%emt 0:05:11]} 15. Nf4 {[%emt 0:00:34]} Ng4 {[%emt 0:01:15]} 16. Re1 {[%emt 0:01:35]} Qd8 {[%emt 0:03:21]} 17. c4 {[%emt 0:01:09]} Bh6 {[%emt 0:03:39]} 18. Nd3 {[%emt 0:05:08]} Qd6 {[%emt 0:05:24]} 19. Qc3 {[%emt 0:03:06]} Re7 {[%emt 0:20:13]} 20. cxd5 {[%emt 0:04:13]} Qxd5 {[%emt 0:00:43]} 21. Qb3 {[%emt 0:00:16]} Qxb3 {[%emt 0:06:45]} 22. axb3 {[%emt 0:00:02]} a6 {[%emt 0:00:01]} 23. Rac1 {[%emt 0:02:32]} Rd8 {[%emt 0:02:03]} 24. Nfe5 {[%emt 0:00:43]} Nxe5 {[%emt 0:01:02]} 25. Nxe5 {[%emt 0:00:05]} Rd5 {[%emt 0:01:52]} 26. Nd3 {[%emt 0:00:07]} Rb5 {[%emt 0:02:56]} 27. b4 {[%emt 0:00:11]} Bf8 {[%emt 0:02:38]} 28. Rc5 {[%emt 0:00:11]} Rb6 {[%emt 0:04:08]} 29. Rc4 {[%emt 0:02:34]} Rd7 {[%emt 0:01:33]} 30. Kf3 {[%emt 0:00:25]} Rd5 {[%emt 0:01:18]} 31. Ra1 {[%emt 0:00:02]} Bd6 {[%emt 0:02:59]} 32. Ke2 {[%emt 0:01:28]} Kf8 {[%emt 0:04:12]} 33. Kd2 {[%emt 0:00:18]} Ke7 {[%emt 0:00:38]} 34. Ra4 {[%emt 0:00:26]} Rbb5 {[%emt 0:07:41]} 35. Rc1 {[%emt 0:06:51]} Rb6 {[%emt 0:06:31]} 36. Kc3 {[%emt 0:01:16]} h5 {[%emt 0:01:15]} 37. Kc4 {[%emt 0:00:20]} Bc7 {[%emt 0:04:22]} 38. Nc5 {[%emt 0:00:49]} Bd6 {[%emt 0:00:10]} 39. Rc2 {[%emt 0:01:29]} Bxc5 {[%emt 0:01:31]} 40. bxc5 {[%emt 0:00:09]} Rb5 {[%emt 0:00:04]} 41. b4 {[%emt 0:00:27]} Ke6 {[%emt 0:00:48]} 42. f3 {[%emt 0:00:02]} Rd8 {[%emt 0:01:02]} 43. Re2 {[%emt 0:00:07]} Re8 {[%emt 0:00:49]} 44. e4 {[%emt 0:00:08]} Kd7 {[%emt 0:00:05]} 45. Raa2 {[%emt 0:00:07]} fxe4 {[%emt 0:00:59]} 46. fxe4 {[%emt 0:00:02]} Re7 {[%emt 0:02:00]} 47. d5 {[%emt 0:00:07]} Re5 {[%emt 0:00:18]} 48. Rad2 {[%emt 0:00:25]} Kc7 {[%emt 0:00:28]} 49. Ra2 {[%emt 0:00:35]} Kd7 {[%emt 0:00:17]} 50. Kd4 {[%emt 0:00:07]} Re8 {[%emt 0:00:25]} 51. Reb2 {[%emt 0:00:41]} Rd8 {[%emt 0:00:19]} 52. Ra5 {[%emt 0:00:32]} Ke7 {[%emt 0:01:03]} 53. Rxb5 {[%emt 0:00:02]} axb5 {[%emt 0:01:13]} 54. d6+ {[%emt 0:00:01]} Ke6 {[%emt 0:01:16]} 55. e5 {[%emt 0:00:01]} Rd7 {[%emt 0:00:31]} 56. Rf2 {[%emt 0:00:08]} f5 {[%emt 0:00:38]} 57. exf6 {[%emt 0:00:02]} Rf7 {[%emt 0:00:27]} 58. Re2+ {[%emt 0:00:10]} Kxf6 {[%emt 0:00:18]} 59. Rf2+ {[%emt 0:00:00]} Ke6 {[%emt 0:00:08]} 60. Rxf7 {[%emt 0:00:07]} Kxf7 {[%emt 0:00:03]} 61. Ke5 {[%emt 0:00:04]} Ke8 {[%emt 0:00:16]} 62. Ke6 {[%emt 0:00:01]} Kd8 {[%emt 0:00:01]} 63. d7 {[%emt 0:00:19]} b6 {[%emt 0:01:22]} 64. cxb6 {[%emt 0:00:02]} c5 {[%emt 0:00:11]} 65. bxc5 {[%emt 0:00:01]} b4 {[%emt 0:00:06]} 66. c6 {[%emt 0:00:01]} b3 {[%emt 0:00:43]} 67. b7 {[%emt 0:00:01]} b2 {[%emt 0:00:09]} 68. b8=B {[%emt 1:15:55]} b1=Q {[%emt 0:00:44]} 69. c7# {[%emt 0:00:00]} 1-0

[Event "10th LBHM Open 2024"]
[Site "Pune"]
[Date "2024.05.21"]
[Round "2.10"]
[White "Patil Omkar U"]
[Black "Koustuv Dash"]
[Result "0-1"]
[ECO "D36"]
[WhiteElo "1667"]
[BlackElo "2133"]
[PlyCount "66"]
[EventDate "2024.05.21"]
[EventType "swiss"]
[EventCountry "IND"]
[TimeControl "5400+30"]

1. d4 {[%emt 0:02:05]} d5 {[%emt 0:00:20]} 2. c4 {[%emt 0:00:10]} e6 {[%emt 0:00:06]} 3. Nc3 {[%emt 0:00:25]} Nf6 {[%emt 0:00:03]} 4. Bg5 {[%emt 0:02:04]} Be7 {[%emt 0:01:14]} 5. Nf3 {[%emt 0:00:08]} O-O {[%emt 0:00:08]} 6. e3 {[%emt 0:02:37]} Nbd7 {[%emt 0:00:22]} 7. cxd5 {[%emt 0:00:13]} exd5 {[%emt 0:02:03]} 8. Bd3 {[%emt 0:01:43]} c6 {[%emt 0:01:06]} 9. O-O {[%emt 0:01:58]} Re8 {[%emt 0:03:31]} 10. Qc2 {[%emt 0:01:11]} Nf8 {[%emt 0:00:12]} 11. Ne5 {[%emt 0:05:43]} N6d7 {[%emt 0:09:52]} 12. Bf4 {[%emt 0:02:36]} Nxe5 {[%emt 0:11:36]} 13. Bxe5 {[%emt 0:02:42]} Bd6 {[%emt 0:00:20]} 14. Bg3 {[%emt 0:00:51]} Bxg3 {[%emt 0:00:21]} 15. hxg3 {[%emt 0:00:10]} g6 {[%emt 0:02:29]} 16. Rfd1 {[%emt 0:11:40]} Ne6 {[%emt 0:02:34]} 17. Rac1 {[%emt 0:08:35]} h5 {[%emt 0:01:28]} 18. Ne2 {[%emt 0:07:40]} Qf6 {[%emt 0:12:15]} 19. Nf4 {[%emt 0:10:19]} Ng5 {[%emt 0:05:00]} 20. b4 {[%emt 0:06:05]} Bd7 {[%emt 0:10:30]} 21. b5 {[%emt 0:04:24]} Kg7 {[%emt 0:00:33]} 22. bxc6 {[%emt 0:01:05]} bxc6 {[%emt 0:00:01]} 23. Be2 {[%emt 0:02:50]} Rh8 {[%emt 0:06:33]} 24. Qb3 {[%emt 0:03:50]} Ne4 {[%emt 0:05:35]} 25. Bf3 {[%emt 0:01:52]} Bg4 {[%emt 0:06:53]} 26. Qa4 {[%emt 0:06:49]} Rac8 {[%emt 0:01:14]} 27. Kf1 {[%emt 0:08:16]} g5 {[%emt 0:01:08]} 28. Bxg4 {[%emt 0:04:28]} hxg4 29. Nd3 {[%emt 0:00:45]} Nxg3+ {[%emt 0:01:13]} 30. Ke1 {[%emt 0:00:10]} Ne4 {[%emt 0:01:17]} 31. Ke2 {[%emt 0:00:52]} Rh2 {[%emt 0:08:39]} 32. Rg1 {[%emt 0:00:17]} Rb8 {[%emt 0:02:53]} 33. Rcf1 {[%emt 0:01:43]} Nc3+ {[%emt 0:00:03]} 0-1

[Event "10th LBHM Open 2024"]
[Site "Pune"]
[Date "2024.05.21"]
[Round "3.1"]
[White "Borse Vaibhav"]
[Black "Ghosh, Diptayan"]
[Result "0-1"]
[ECO "B13"]
[WhiteElo "1752"]
[BlackElo "2564"]
[PlyCount "186"]
[EventDate "2024.05.21"]
[EventType "swiss"]
[EventCountry "IND"]
[TimeControl "5400+30"]

1. e4 {[%emt 0:00:05]} c6 {[%emt 0:04:50]} 2. d4 {[%emt 0:00:17]} d5 {[%emt 0:00:05]} 3. exd5 {[%emt 0:00:15]} cxd5 {[%emt 0:00:07]} 4. Bd3 {[%emt 0:00:14]} Nf6 {[%emt 0:01:31]} 5. c3 {[%emt 0:00:14]} Bg4 {[%emt 0:00:12]} 6. Qb3 {[%emt 0:01:00]} Qc7 {[%emt 0:00:12]} 7. h3 {[%emt 0:03:36]} Bd7 {[%emt 0:03:57]} 8. Ne2 {[%emt 0:02:40]} Nc6 {[%emt 0:00:05]} 9. Bf4 e5 {[%emt 0:00:34]} 10. dxe5 {[%emt 0:01:11]} Nxe5 11. Bb5 {[%emt 0:03:01]} Bd6 {[%emt 0:00:42]} 12. Nd2 {[%emt 0:01:24]} O-O {[%emt 0:00:41]} 13. Bxe5 {[%emt 0:06:41]} Bxe5 {[%emt 0:00:14]} 14. Bxd7 {[%emt 0:00:05]} Qxd7 {[%emt 0:00:09]} 15. O-O {[%emt 0:00:55]} Rfe8 {[%emt 0:00:19]} 16. Rfe1 {[%emt 0:00:48]} Bc7 {[%emt 0:02:45]} 17. Nf3 {[%emt 0:05:45]} Bb6 {[%emt 0:02:26]} 18. Rad1 {[%emt 0:10:36]} Ne4 {[%emt 0:05:17]} 19. Ned4 {[%emt 0:04:09]} Rad8 {[%emt 0:02:05]} 20. Rf1 {[%emt 0:09:02]} Qd6 {[%emt 0:08:21]} 21. Nf5 {[%emt 0:09:11]} Qe6 {[%emt 0:09:55]} 22. N3d4 {[%emt 0:02:50]} Qe5 {[%emt 0:05:54]} 23. Rfe1 {[%emt 0:06:57]} Qf4 {[%emt 0:04:54]} 24. f3 {[%emt 0:04:06]} Nf6 {[%emt 0:12:48]} 25. Ne7+ {[%emt 0:04:10]} Kh8 {[%emt 0:02:27]} 26. Nxd5 {[%emt 0:03:33]} Bxd4+ {[%emt 0:02:34]} 27. cxd4 {[%emt 0:01:08]} Rxe1+ {[%emt 0:00:09]} 28. Rxe1 {[%emt 0:00:04]} Qxd4+ {[%emt 0:00:22]} 29. Ne3 {[%emt 0:00:23]} Re8 {[%emt 0:00:25]} 30. Qc3 {[%emt 0:04:44]} Qxc3 {[%emt 0:02:07]} 31. bxc3 {[%emt 0:00:05]} Nd5 {[%emt 0:00:24]} 32. Kf2 {[%emt 0:00:59]} Nxc3 {[%emt 0:00:30]} 33. Rc1 {[%emt 0:01:43]} Rc8 {[%emt 0:04:44]} 34. Ke1 {[%emt 0:00:52]} b5 {[%emt 0:08:49]} 35. a3 {[%emt 0:00:07]} a5 {[%emt 0:00:03]} 36. Nd1 {[%emt 0:02:38]} Re8+ {[%emt 0:00:24]} 37. Kd2 {[%emt 0:00:28]} Nxd1 {[%emt 0:01:00]} 38. Kxd1 {[%emt 0:02:36]} g6 {[%emt 0:00:22]} 39. Rc5 {[%emt 0:00:38]} Re3 {[%emt 0:00:11]} 40. Rxb5 {[%emt 0:01:26]} Rxa3 {[%emt 0:00:02]} 41. Ke2 {[%emt 0:05:04]} Ra2+ {[%emt 0:00:04]} 42. Kf1 {[%emt 0:00:16]} Kg7 {[%emt 0:00:07]} 43. Rb6 {[%emt 0:00:30]} g5 {[%emt 0:01:12]} 44. Kg1 {[%emt 0:00:28]} h5 {[%emt 0:00:27]} 45. h4 {[%emt 0:00:28]} gxh4 {[%emt 0:00:43]} 46. Kh2 {[%emt 0:00:06]} Ra1 {[%emt 0:00:04]} 47. Rc6 {[%emt 0:00:20]} Ra4 {[%emt 0:03:05]} 48. Kh3 {[%emt 0:00:23]} f6 {[%emt 0:00:26]} 49. Rc8 {[%emt 0:00:14]} f5 {[%emt 0:03:49]} 50. Rc7+ {[%emt 0:03:33]} Kg6 {[%emt 0:00:19]} 51. Rc8 {[%emt 0:00:33]} Rf4 {[%emt 0:00:18]} 52. Rc6+ {[%emt 0:00:44]} Kg5 {[%emt 0:00:11]} 53. Rc8 {[%emt 0:00:12]} a4 {[%emt 0:00:23]} 54. Rh8 {[%emt 0:00:27]} Rb4 {[%emt 0:00:10]} 55. Rg8+ {[%emt 0:00:18]} Kf6 {[%emt 0:00:20]} 56. Rh8 {[%emt 0:00:22]} Ke5 {[%emt 0:00:52]} 57. Rd8 {[%emt 0:00:35]} Rd4 {[%emt 0:00:30]} 58. Rf8 {[%emt 0:00:20]} Ke6 {[%emt 0:01:41]} 59. Rh8 {[%emt 0:00:09]} Ke5 {[%emt 0:01:05]} 60. Rf8 {[%emt 0:00:22]} Rf4 {[%emt 0:00:14]} 61. Rd8 {[%emt 0:00:39]} Ke6 {[%emt 0:00:05]} 62. Rd3 {[%emt 0:00:57]} Rc4 {[%emt 0:00:41]} 63. Rd8 {[%emt 0:00:09]} Ke5 {[%emt 0:01:04]} 64. Rf8 {[%emt 0:00:44]} Rd4 {[%emt 0:00:48]} 65. Rf7 {[%emt 0:00:24]} Rb4 {[%emt 0:04:36]} 66. Rf8 {[%emt 0:00:16]} Ke6 {[%emt 0:00:33]} 67. Rd8 {[%emt 0:00:18]} Rc4 {[%emt 0:00:16]} 68. Rd3 {[%emt 0:00:21]} Ke7 {[%emt 0:01:48]} 69. Rd5 {[%emt 0:00:12]} Kf6 {[%emt 0:00:01]} 70. Rd8 {[%emt 0:00:32]} Rb4 {[%emt 0:01:56]} 71. Rh8 {[%emt 0:01:01]} Ke5 {[%emt 0:02:30]} 72. Rd8 {[%emt 0:00:37]} Rf4 {[%emt 0:00:47]} 73. Kh2 {[%emt 0:00:25]} Rd4 {[%emt 0:00:13]} 74. Rf8 {[%emt 0:00:07]} Rd1 {[%emt 0:00:31]} 75. Re8+ {[%emt 0:01:12]} Kf4 {[%emt 0:00:26]} 76. Ra8 {[%emt 0:00:54]} Ra1 {[%emt 0:00:03]} 77. Rh8 {[%emt 0:00:12]} Kg5 {[%emt 0:02:42]} 78. Rg8+ {[%emt 0:00:16]} Kf6 {[%emt 0:00:05]} 79. Rh8 {[%emt 0:00:04]} Kg6 {[%emt 0:01:24]} 80. Rg8+ {[%emt 0:00:13]} Kf6 {[%emt 0:00:07]} 81. Rh8 {[%emt 0:00:03]} a3 {[%emt 0:01:01]} 82. Rxh5 {[%emt 0:00:10]} a2 {[%emt 0:00:32]} 83. Rh6+ {[%emt 0:00:03]} Ke5 {[%emt 0:00:06]} 84. Ra6 {[%emt 0:00:04]} Kf4 {[%emt 0:00:33]} 85. Ra3 {[%emt 0:00:12]} Ke5 {[%emt 0:00:09]} 86. Ra8 {[%emt 0:00:11]} Kd4 {[%emt 0:00:14]} 87. Rd8+ {[%emt 0:00:36]} Ke3 {[%emt 0:00:06]} 88. Ra8 {[%emt 0:00:25]} Kf2 {[%emt 0:00:22]} 89. Ra5 {[%emt 0:00:44]} f4 {[%emt 0:00:48]} 90. Ra3 {[%emt 0:00:59]} Ke2 {[%emt 0:00:04]} 91. Ra8 {[%emt 0:00:11]} h3 {[%emt 0:00:06]} 92. gxh3 {[%emt 0:00:07]} Kxf3 {[%emt 0:00:01]} 93. Ra7 {[%emt 0:01:04]} Re1 {[%emt 0:01:18]} 0-1

[Event "10th LBHM Open 2024"]
[Site "Pune"]
[Date "2024.05.21"]
[Round "3.2"]
[White "Aronyak Ghosh"]
[Black "Nihaan Pohane"]
[Result "1-0"]
[ECO "D02"]
[WhiteElo "2536"]
[BlackElo "1740"]
[PlyCount "91"]
[EventDate "2024.05.21"]
[EventType "swiss"]
[EventCountry "IND"]
[TimeControl "5400+30"]

1. Nf3 {[%emt 0:04:37]} Nf6 {[%emt 0:00:22]} 2. d4 {[%emt 0:01:26]} d5 {[%emt 0:01:43]} 3. Bf4 {[%emt 0:00:38]} g6 {[%emt 0:00:15]} 4. e3 {[%emt 0:02:34]} Bg7 {[%emt 0:00:10]} 5. Nbd2 {[%emt 0:00:06]} O-O {[%emt 0:00:26]} 6. c3 {[%emt 0:00:21]} c5 {[%emt 0:01:07]} 7. dxc5 {[%emt 0:00:31]} a5 8. a4 {[%emt 0:06:57]} Nc6 {[%emt 0:19:24]} 9. h3 {[%emt 0:04:18]} Bd7 {[%emt 0:22:25]} 10. Be2 {[%emt 0:04:00]} Re8 {[%emt 0:03:49]} 11. O-O {[%emt 0:08:17]} e5 {[%emt 0:01:10]} 12. Bh2 {[%emt 0:00:55]} h5 {[%emt 0:12:13]} 13. Bb5 {[%emt 0:01:34]} Nh7 {[%emt 0:02:04]} 14. e4 {[%emt 0:01:16]} Be6 {[%emt 0:04:45]} 15. Re1 {[%emt 0:02:05]} d4 {[%emt 0:03:51]} 16. cxd4 {[%emt 0:03:17]} exd4 {[%emt 0:00:23]} 17. Bd6 {[%emt 0:00:39]} Bf8 {[%emt 0:09:35]} 18. e5 {[%emt 0:03:19]} Bxd6 {[%emt 0:00:35]} 19. exd6 {[%emt 0:01:21]} Ng5 {[%emt 0:01:19]} 20. Rc1 {[%emt 0:03:22]} Rc8 {[%emt 0:04:00]} 21. Nxg5 {[%emt 0:01:39]} Qxg5 {[%emt 0:00:11]} 22. Nf3 {[%emt 0:01:02]} Qd5 {[%emt 0:03:06]} 23. Bxc6 {[%emt 0:01:12]} Rxc6 {[%emt 0:00:18]} 24. Nxd4 {[%emt 0:02:50]} Rxc5 {[%emt 0:02:52]} 25. Rxc5 {[%emt 0:00:09]} Qxc5 {[%emt 0:00:07]} 26. Nxe6 {[%emt 0:00:05]} fxe6 {[%emt 0:00:33]} 27. d7 {[%emt 0:00:06]} Rd8 {[%emt 0:00:22]} 28. Rxe6 {[%emt 0:00:13]} Rxd7 {[%emt 0:00:06]} 29. Re8+ {[%emt 0:00:14]} Kg7 {[%emt 0:01:05]} 30. Qxd7+ {[%emt 0:00:04]} Kh6 {[%emt 0:00:15]} 31. Rh8+ {[%emt 0:00:17]} Kg5 {[%emt 0:00:03]} 32. Qb5 {[%emt 0:00:18]} b6 {[%emt 0:00:23]} 33. Qxc5+ {[%emt 0:00:04]} bxc5 {[%emt 0:00:05]} 34. Ra8 {[%emt 0:00:02]} h4 {[%emt 0:00:14]} 35. Rxa5 {[%emt 0:00:04]} Kf4 {[%emt 0:00:08]} 36. Rxc5 {[%emt 0:00:03]} g5 {[%emt 0:00:05]} 37. a5 {[%emt 0:00:06]} g4 {[%emt 0:00:02]} 38. Rc4+ {[%emt 0:00:04]} Ke5 {[%emt 0:00:21]} 39. Rxg4 {[%emt 0:00:10]} Kd5 {[%emt 0:00:08]} 40. a6 {[%emt 0:00:07]} Kc6 {[%emt 0:00:05]} 41. Ra4 {[%emt 0:00:08]} Kc7 {[%emt 0:00:38]} 42. a7 {[%emt 0:00:04]} Kb6 {[%emt 0:00:03]} 43. a8=Q {[%emt 0:00:06]} Kc7 {[%emt 0:00:06]} 44. Ra6 {[%emt 0:00:11]} Kd7 {[%emt 0:00:04]} 45. Qb7+ {[%emt 0:00:03]} Ke8 {[%emt 0:00:07]} 46. Ra8# {[%emt 0:00:02]} 1-0

[Event "10th LBHM Open 2024"]
[Site "Pune"]
[Date "2024.05.21"]
[Round "3.3"]
[White "Rohith N"]
[Black "Neelash Saha"]
[Result "0-1"]
[ECO "D00"]
[WhiteElo "1750"]
[BlackElo "2483"]
[PlyCount "98"]
[EventDate "2024.05.21"]
[EventType "swiss"]
[EventCountry "IND"]
[TimeControl "5400+30"]

1. d4 {[%emt 0:00:09]} e6 {[%emt 0:03:03]} 2. Nc3 {[%emt 0:00:19]} d5 {[%emt 0:01:08]} 3. Bf4 {[%emt 0:00:09]} Nf6 {[%emt 0:01:41]} 4. Nb5 {[%emt 0:00:11]} Na6 {[%emt 0:00:24]} 5. e3 {[%emt 0:00:07]} c6 {[%emt 0:00:56]} 6. Nc3 {[%emt 0:00:07]} Bb4 {[%emt 0:00:08]} 7. Bxa6 {[%emt 0:00:47]} bxa6 {[%emt 0:00:05]} 8. Nge2 {[%emt 0:00:11]} a5 {[%emt 0:01:40]} 9. a3 {[%emt 0:01:39]} Be7 {[%emt 0:00:09]} 10. Na4 {[%emt 0:02:03]} Nd7 11. Qd3 {[%emt 0:04:40]} O-O 12. O-O {[%emt 0:04:23]} Bb7 {[%emt 0:14:45]} 13. Nc1 {[%emt 0:06:08]} c5 {[%emt 0:04:05]} 14. dxc5 {[%emt 0:01:04]} Bc6 {[%emt 0:00:56]} 15. Nc3 {[%emt 0:03:30]} Nxc5 {[%emt 0:00:57]} 16. Qe2 {[%emt 0:00:19]} Bb7 {[%emt 0:04:08]} 17. Rd1 {[%emt 0:01:40]} Ba6 {[%emt 0:02:33]} 18. Qh5 {[%emt 0:03:03]} Qb6 {[%emt 0:03:10]} 19. Be5 {[%emt 0:04:09]} f6 {[%emt 0:00:57]} 20. Bd4 {[%emt 0:00:17]} Qc6 {[%emt 0:00:05]} 21. Bxc5 {[%emt 0:03:13]} Bxc5 {[%emt 0:00:32]} 22. Nb3 {[%emt 0:00:13]} Bb6 {[%emt 0:00:10]} 23. Nd4 {[%emt 0:03:13]} Qe8 {[%emt 0:00:18]} 24. Qxe8 {[%emt 0:03:07]} Rfxe8 {[%emt 0:00:04]} 25. Na4 {[%emt 0:00:20]} Rac8 {[%emt 0:05:30]} 26. Nxb6 {[%emt 0:03:33]} axb6 {[%emt 0:00:04]} 27. c3 {[%emt 0:00:35]} Kf7 {[%emt 0:00:08]} 28. f3 {[%emt 0:01:00]} g6 {[%emt 0:00:52]} 29. Kf2 {[%emt 0:00:50]} e5 {[%emt 0:00:46]} 30. Ne2 {[%emt 0:01:53]} Bc4 {[%emt 0:00:15]} 31. Rd2 {[%emt 0:01:09]} Ke6 {[%emt 0:00:20]} 32. h4 {[%emt 0:00:49]} h5 {[%emt 0:01:23]} 33. f4 {[%emt 0:08:04]} Kf5 {[%emt 0:01:28]} 34. fxe5 {[%emt 0:04:45]} fxe5 {[%emt 0:00:06]} 35. Kf3 {[%emt 0:01:50]} Rf8 {[%emt 0:01:10]} 36. Ng1 {[%emt 0:01:39]} g5 {[%emt 0:05:43]} 37. hxg5 {[%emt 0:00:57]} h4 {[%emt 0:03:04]} 38. Nh3 {[%emt 0:03:33]} Bd3 {[%emt 0:03:15]} 39. Rad1 {[%emt 0:13:53]} Kg6+ {[%emt 0:07:00]} 40. Kg4 {[%emt 0:07:31]} Rc4+ {[%emt 0:00:13]} 41. Nf4+ {[%emt 0:00:09]} exf4 {[%emt 0:01:43]} 42. Rxd3 {[%emt 0:00:06]} fxe3+ {[%emt 0:00:02]} 43. Rd4 {[%emt 0:02:32]} Rxd4+ {[%emt 0:00:08]} 44. cxd4 {[%emt 0:00:06]} Re8 {[%emt 0:04:28]} 45. Re1 {[%emt 0:03:19]} Re4+ {[%emt 0:01:15]} 46. Kf3 {[%emt 0:00:07]} Kxg5 {[%emt 0:00:03]} 47. Rh1 {[%emt 0:09:37]} e2 {[%emt 0:00:21]} 48. Re1 {[%emt 0:00:06]} Rxd4 {[%emt 0:00:45]} 49. g4 {[%emt 0:00:18]} Rf4+ {[%emt 0:00:14]} 0-1